[Event "*** Titled Tuesday Blitz AM"]
[Site "Chess.com"]
[Date "2020.01.07"]
[Round "1"]
[White "TrimitziosP7"]
[Black "Me_ch_an"]
[Result "1-0"]
[WhiteElo "2720"]
[BlackElo "2361"]
[TimeControl "180+2"]
[EndTime "9:05:51 PST"]
[Termination "TrimitziosP7 won by resignation"]

1. Nf3 {[%clk 0:03:01.6]} 1... d5 {[%clk 0:03:00]} 2. d4 {[%clk 0:03:00.8]} 2...
Nf6 {[%clk 0:03:00.5]} 3. c4 {[%clk 0:02:46]} 3... dxc4 {[%clk 0:03:01.1]} 4.
Na3 {[%clk 0:02:46.2]} 4... e6 {[%clk 0:03:00.3]} 5. Nxc4 {[%clk 0:02:45.2]}
5... a6 {[%clk 0:03:01.6]} 6. g3 {[%clk 0:02:42.7]} 6... b5 {[%clk 0:02:58.3]}
7. Nce5 {[%clk 0:02:43]} 7... Bb7 {[%clk 0:02:58.9]} 8. Bg2 {[%clk 0:02:43.8]}
8... c5 {[%clk 0:02:58.3]} 9. O-O {[%clk 0:02:44.4]} 9... Nbd7 {[%clk
0:02:41.2]} 10. b3 {[%clk 0:02:40.6]} 10... Be7 {[%clk 0:02:35.2]} 11. Bb2
{[%clk 0:02:41.1]} 11... O-O {[%clk 0:02:35.5]} 12. Rc1 {[%clk 0:02:41.5]} 12...
Rc8 {[%clk 0:02:35.8]} 13. dxc5 {[%clk 0:02:39.7]} 13... Nxc5 {[%clk 0:02:28.9]}
14. Qc2 {[%clk 0:02:35.8]} 14... Be4 {[%clk 0:02:12.9]} 15. Qd2 {[%clk
0:02:23.8]} 15... Qd5 {[%clk 0:01:48.3]} 16. Qe3 {[%clk 0:02:17.3]} 16... Rfd8
{[%clk 0:01:33.7]} 17. h3 {[%clk 0:02:08.3]} 17... Qb7 {[%clk 0:01:30.7]} 18.
Rfd1 {[%clk 0:02:07.1]} 18... Nd5 {[%clk 0:01:27.8]} 19. Qd2 {[%clk 0:02:02.1]}
19... b4 {[%clk 0:01:16]} 20. Qe1 {[%clk 0:01:59.9]} 20... Nf6 {[%clk
0:00:56.6]} 21. Nc4 {[%clk 0:01:58.9]} 21... Bd5 {[%clk 0:00:36.8]} 22. Ne3
{[%clk 0:01:58.3]} 22... Be4 {[%clk 0:00:35.5]} 23. Bd4 {[%clk 0:01:57.1]} 23...
a5 {[%clk 0:00:30.1]} 24. Bxc5 {[%clk 0:01:55.9]} 24... Rxd1 {[%clk 0:00:22.7]}
25. Qxd1 {[%clk 0:01:56.7]} 25... Bxc5 {[%clk 0:00:21.5]} 26. Rxc5 {[%clk
0:01:53.9]} 1-0

[Event "*** Titled Tuesday Blitz AM"]
[Site "Chess.com"]
[Date "2020.01.07"]
[Round "1"]
[White "SavelijTartakover"]
[Black "Eliwood44"]
[Result "1-0"]
[WhiteElo "2704"]
[BlackElo "2329"]
[TimeControl "180+2"]
[EndTime "9:05:54 PST"]
[Termination "SavelijTartakover won by resignation"]

1. d4 {[%clk 0:03:00.7]} 1... Nf6 {[%clk 0:03:00]} 2. c4 {[%clk 0:03:00.9]} 2...
e6 {[%clk 0:02:57.3]} 3. Nf3 {[%clk 0:03:00.6]} 3... d5 {[%clk 0:02:56.9]} 4.
Nc3 {[%clk 0:02:59.9]} 4... Be7 {[%clk 0:02:56.3]} 5. Bg5 {[%clk 0:02:59.6]}
5... Nbd7 {[%clk 0:02:56.7]} 6. e3 {[%clk 0:03:00.2]} 6... h6 {[%clk 0:02:56.9]}
7. Bh4 {[%clk 0:03:00.5]} 7... O-O {[%clk 0:02:57.4]} 8. Qc2 {[%clk 0:03:00.9]}
8... c5 {[%clk 0:02:58.2]} 9. cxd5 {[%clk 0:03:01]} 9... Nxd5 {[%clk 0:02:57.4]}
10. Bxe7 {[%clk 0:03:01]} 10... Qxe7 {[%clk 0:02:49.7]} 11. Nxd5 {[%clk
0:03:00.3]} 11... exd5 {[%clk 0:02:49.6]} 12. dxc5 {[%clk 0:03:01]} 12... Nxc5
{[%clk 0:02:50.6]} 13. Be2 {[%clk 0:02:57.4]} 13... Ne4 {[%clk 0:02:48.3]} 14.
O-O {[%clk 0:02:54.6]} 14... Bg4 {[%clk 0:02:07.3]} 15. h3 {[%clk 0:02:40.9]}
15... Bh5 {[%clk 0:01:59.4]} 16. Rad1 {[%clk 0:02:40.2]} 16... Rfd8 {[%clk
0:01:58.5]} 17. Nd4 {[%clk 0:02:35.5]} 17... Rac8 {[%clk 0:01:57.7]} 18. Qb3
{[%clk 0:02:35.5]} 18... Bxe2 {[%clk 0:01:57.1]} 19. Nxe2 {[%clk 0:02:37.4]}
19... Nc5 {[%clk 0:01:56.8]} 20. Qa3 {[%clk 0:02:37.1]} 20... b6 {[%clk
0:01:57.5]} 21. Nf4 {[%clk 0:02:35.2]} 21... Qe5 {[%clk 0:01:52]} 22. Qxa7
{[%clk 0:02:26.3]} 22... d4 {[%clk 0:01:42.6]} 23. Qxb6 {[%clk 0:02:15.3]} 23...
Rb8 {[%clk 0:01:42.7]} 24. Qa5 {[%clk 0:02:13.6]} 24... Ra8 {[%clk 0:01:39.6]}
25. Qd2 {[%clk 0:01:51.6]} 25... dxe3 {[%clk 0:01:36.3]} 26. Qxe3 {[%clk
0:01:52.4]} 26... Qxe3 {[%clk 0:01:35.5]} 27. fxe3 {[%clk 0:01:53.6]} 27... Rxd1
{[%clk 0:01:37.1]} 28. Rxd1 {[%clk 0:01:54.7]} 28... Rxa2 {[%clk 0:01:38.7]} 29.
b4 {[%clk 0:01:54.5]} 29... Ne4 {[%clk 0:01:34.1]} 30. Rb1 {[%clk 0:01:52.2]}
30... Nc3 {[%clk 0:01:28.8]} 31. Rb3 {[%clk 0:01:51.9]} 31... Nd1 {[%clk
0:01:27.6]} 32. b5 {[%clk 0:01:49.7]} 32... Ra7 {[%clk 0:01:14.6]} 33. b6 {[%clk
0:01:43.6]} 33... Rb7 {[%clk 0:01:13.4]} 34. Nd5 {[%clk 0:01:44.1]} 34... f5
{[%clk 0:01:08.6]} 35. Kf1 {[%clk 0:01:44.8]} 1-0

[Event "*** Titled Tuesday Blitz AM"]
[Site "Chess.com"]
[Date "2020.01.07"]
[Round "1"]
[White "Korchmar_Vasiliy"]
[Black "pedroholly22"]
[Result "1-0"]
[WhiteElo "2757"]
[BlackElo "2390"]
[TimeControl "180+2"]
[EndTime "9:05:59 PST"]
[Termination "Korchmar_Vasiliy won by checkmate"]

1. d4 {[%clk 0:03:00.4]} 1... Nf6 {[%clk 0:03:00.2]} 2. c4 {[%clk 0:03:01.7]}
2... c5 {[%clk 0:02:58.8]} 3. d5 {[%clk 0:03:02.7]} 3... e6 {[%clk 0:03:00.3]}
4. Nc3 {[%clk 0:03:03.3]} 4... exd5 {[%clk 0:03:01.4]} 5. cxd5 {[%clk
0:03:05.2]} 5... d6 {[%clk 0:03:02.9]} 6. Nf3 {[%clk 0:03:05.4]} 6... g6 {[%clk
0:03:04.3]} 7. g3 {[%clk 0:03:06.2]} 7... Bg7 {[%clk 0:03:04.8]} 8. Bg2 {[%clk
0:03:07]} 8... O-O {[%clk 0:03:06.7]} 9. O-O {[%clk 0:03:07.9]} 9... Re8 {[%clk
0:03:06.8]} 10. Bf4 {[%clk 0:03:07.6]} 10... a6 {[%clk 0:03:06]} 11. a4 {[%clk
0:03:08.3]} 11... Ne4 {[%clk 0:03:05.9]} 12. Nxe4 {[%clk 0:03:09]} 12... Rxe4
{[%clk 0:03:07.8]} 13. Nd2 {[%clk 0:03:10.5]} 13... Rxf4 {[%clk 0:02:57]} 14.
gxf4 {[%clk 0:03:12.4]} 14... Bxb2 {[%clk 0:02:58.1]} 15. Rb1 {[%clk 0:03:13.8]}
15... Bg7 {[%clk 0:02:56.3]} 16. Nc4 {[%clk 0:03:05.9]} 16... b5 {[%clk
0:02:55.4]} 17. axb5 {[%clk 0:02:46.3]} 17... axb5 {[%clk 0:02:57.3]} 18. Rxb5
{[%clk 0:02:42.3]} 18... Ba6 {[%clk 0:02:57]} 19. Ra5 {[%clk 0:02:31.3]} 19...
Bc3 {[%clk 0:02:27.4]} 20. Ra3 {[%clk 0:02:18.7]} 20... Bb4 {[%clk 0:02:19.9]}
21. Ra2 {[%clk 0:02:20]} 21... Bc3 {[%clk 0:02:13.2]} 22. Qb3 {[%clk 0:02:15]}
22... Bb4 {[%clk 0:02:03.8]} 23. Rfa1 {[%clk 0:02:13.2]} 23... Ra7 {[%clk
0:02:04.9]} 24. e3 {[%clk 0:01:56.8]} 24... Qe7 {[%clk 0:01:58.4]} 25. Na5
{[%clk 0:01:55.3]} 25... Rc7 {[%clk 0:01:49.2]} 26. Nc6 {[%clk 0:01:47]} 26...
Nxc6 {[%clk 0:01:49.7]} 27. Rxa6 {[%clk 0:01:29.3]} 27... Nd8 {[%clk 0:01:35.3]}
28. Qb2 {[%clk 0:01:26.8]} 28... f6 {[%clk 0:01:33.7]} 29. Ra8 {[%clk
0:01:23.9]} 29... Kg7 {[%clk 0:01:34.2]} 30. Rb8 {[%clk 0:01:23.5]} 30... Nf7
{[%clk 0:01:33.1]} 31. Raa8 {[%clk 0:01:22.7]} 31... Ra7 {[%clk 0:01:33]} 32.
Rg8+ {[%clk 0:01:18.8]} 32... Kh6 {[%clk 0:01:33]} 33. Rxa7 {[%clk 0:01:20.4]}
33... Qxa7 {[%clk 0:01:31.5]} 34. Qxf6 {[%clk 0:01:21.9]} 34... c4 {[%clk
0:01:26.6]} 35. Qh4# {[%clk 0:01:15.8]} 1-0

[Event "*** Titled Tuesday Blitz AM"]
[Site "Chess.com"]
[Date "2020.01.07"]
[Round "1"]
[White "Aygehovit1992"]
[Black "Grieve72"]
[Result "0-1"]
[WhiteElo "2598"]
[BlackElo "2269"]
[TimeControl "180+2"]
[EndTime "9:06:11 PST"]
[Termination "Grieve72 won by resignation"]

1. e4 {[%clk 0:03:00.4]} 1... c5 {[%clk 0:03:00.2]} 2. Nf3 {[%clk 0:02:59.7]}
2... e6 {[%clk 0:03:01.7]} 3. d4 {[%clk 0:02:59.2]} 3... cxd4 {[%clk 0:03:03.6]}
4. Nxd4 {[%clk 0:03:01.1]} 4... Nc6 {[%clk 0:03:05.5]} 5. Nc3 {[%clk 0:03:02.1]}
5... Qc7 {[%clk 0:03:05.8]} 6. Be2 {[%clk 0:03:02.4]} 6... a6 {[%clk 0:03:07.3]}
7. O-O {[%clk 0:03:03.2]} 7... Nf6 {[%clk 0:03:08.9]} 8. Be3 {[%clk 0:03:04.1]}
8... Bb4 {[%clk 0:03:09.8]} 9. f4 {[%clk 0:02:56.1]} 9... Bxc3 {[%clk
0:03:05.6]} 10. bxc3 {[%clk 0:02:58]} 10... Nxe4 {[%clk 0:02:38.9]} 11. Qd3
{[%clk 0:02:58.1]} 11... d5 {[%clk 0:02:26.3]} 12. c4 {[%clk 0:02:37.7]} 12...
O-O {[%clk 0:02:16.5]} 13. Nxc6 {[%clk 0:02:30.9]} 13... bxc6 {[%clk 0:02:11.2]}
14. Bd4 {[%clk 0:02:17.9]} 14... f6 {[%clk 0:01:53.9]} 15. Bf3 {[%clk
0:02:06.9]} 15... Nd6 {[%clk 0:01:55.1]} 16. Bc5 {[%clk 0:02:00.3]} 16... Rd8
{[%clk 0:01:40.5]} 17. cxd5 {[%clk 0:01:37.4]} 17... cxd5 {[%clk 0:01:35.3]} 18.
Bf2 {[%clk 0:01:31.2]} 18... a5 {[%clk 0:01:32]} 19. Bxd5 {[%clk 0:01:24]} 19...
exd5 {[%clk 0:00:52]} 20. Qxd5+ {[%clk 0:01:23.3]} 20... Nf7 {[%clk 0:00:53.3]}
21. Qxa8 {[%clk 0:01:24]} 21... Bb7 {[%clk 0:00:54.7]} 22. Qxd8+ {[%clk
0:01:04.5]} 22... Nxd8 {[%clk 0:00:56.6]} 23. Rad1 {[%clk 0:01:04.1]} 23... Qc6
{[%clk 0:00:46]} 24. Rxd8+ {[%clk 0:01:04.3]} 24... Kf7 {[%clk 0:00:47.5]} 0-1

[Event "*** Titled Tuesday Blitz AM"]
[Site "Chess.com"]
[Date "2020.01.07"]
[Round "1"]
[White "BestByTestbro"]
[Black "Supernotar"]
[Result "0-1"]
[WhiteElo "2170"]
[BlackElo "2590"]
[TimeControl "180+2"]
[EndTime "9:06:17 PST"]
[Termination "Supernotar won by resignation"]

1. e4 {[%clk 0:03:01.9]} 1... c6 {[%clk 0:03:00.4]} 2. d4 {[%clk 0:03:02.7]}
2... d5 {[%clk 0:03:01.3]} 3. e5 {[%clk 0:03:04.3]} 3... Bf5 {[%clk 0:03:01.9]}
4. Nf3 {[%clk 0:03:05.6]} 4... e6 {[%clk 0:03:02.6]} 5. Be2 {[%clk 0:03:07.1]}
5... Nd7 {[%clk 0:03:02.5]} 6. O-O {[%clk 0:03:07.9]} 6... a6 {[%clk 0:03:01.6]}
7. Nbd2 {[%clk 0:03:04.8]} 7... c5 {[%clk 0:02:55.5]} 8. c4 {[%clk 0:03:05]}
8... Ne7 {[%clk 0:02:55.6]} 9. cxd5 {[%clk 0:02:55.4]} 9... Nxd5 {[%clk
0:02:56.1]} 10. Nc4 {[%clk 0:02:54.7]} 10... b5 {[%clk 0:02:49.4]} 11. Ne3
{[%clk 0:02:22.3]} 11... N7b6 {[%clk 0:02:44.5]} 12. dxc5 {[%clk 0:02:13.4]}
12... Bxc5 {[%clk 0:02:43]} 13. Nd4 {[%clk 0:02:15.1]} 13... Bg6 {[%clk
0:02:36.5]} 14. a4 {[%clk 0:02:04.1]} 14... Nf4 {[%clk 0:02:16.7]} 15. Bxb5+
{[%clk 0:00:34.1]} 15... axb5 {[%clk 0:02:13.4]} 16. Nxb5 {[%clk 0:00:35.1]}
16... Bd3 {[%clk 0:01:52.1]} 17. Re1 {[%clk 0:00:13.6]} 17... Bxb5 {[%clk
0:01:48.9]} 18. Qb3 {[%clk 0:00:15.1]} 18... Bxa4 {[%clk 0:01:39.1]} 19. Rxa4
{[%clk 0:00:07.9]} 19... Rxa4 {[%clk 0:01:35.7]} 20. Rd1 {[%clk 0:00:09.3]}
20... Rd4 {[%clk 0:01:19]} 21. Qb5+ {[%clk 0:00:09.4]} 21... Nd7 {[%clk
0:01:18.4]} 0-1

[Event "*** Titled Tuesday Blitz AM"]
[Site "Chess.com"]
[Date "2020.01.07"]
[Round "1"]
[White "TregubovP"]
[Black "Generalas"]
[Result "0-1"]
[WhiteElo "2550"]
[BlackElo "2207"]
[TimeControl "180+2"]
[EndTime "9:06:19 PST"]
[Termination "Generalas won by resignation"]

1. d4 {[%clk 0:02:42.1]} 1... Nf6 {[%clk 0:02:59]} 2. c4 {[%clk 0:02:40]} 2...
c5 {[%clk 0:02:59]} 3. d5 {[%clk 0:02:39.8]} 3... b5 {[%clk 0:02:59.2]} 4. cxb5
{[%clk 0:02:40.8]} 4... a6 {[%clk 0:03:00.4]} 5. e3 {[%clk 0:02:41.2]} 5... axb5
{[%clk 0:02:59.8]} 6. Bxb5 {[%clk 0:02:42]} 6... Bb7 {[%clk 0:02:59.9]} 7. Nc3
{[%clk 0:02:42.8]} 7... Qa5 {[%clk 0:03:00.7]} 8. Ne2 {[%clk 0:02:44.1]} 8...
Nxd5 {[%clk 0:02:57.4]} 9. O-O {[%clk 0:02:45.2]} 9... Nc7 {[%clk 0:02:56.6]}
10. Bc4 {[%clk 0:02:45.1]} 10... e6 {[%clk 0:02:56.7]} 11. e4 {[%clk 0:02:46.2]}
11... Be7 {[%clk 0:02:56.5]} 12. Bf4 {[%clk 0:02:43.5]} 12... O-O {[%clk
0:02:48.3]} 13. Bd6 {[%clk 0:02:41.8]} 13... Bxd6 {[%clk 0:02:30.4]} 14. Qxd6
{[%clk 0:02:42.6]} 14... Ba6 {[%clk 0:02:31.6]} 15. b3 {[%clk 0:02:18]} 15...
Bxc4 {[%clk 0:02:24.3]} 16. bxc4 {[%clk 0:02:19.1]} 16... Ra6 {[%clk 0:02:25.2]}
17. Qd3 {[%clk 0:02:20.6]} 17... Nc6 {[%clk 0:02:18.9]} 18. Nb5 {[%clk
0:01:44.2]} 18... Ne5 {[%clk 0:02:14.3]} 19. Qb3 {[%clk 0:01:44.9]} 19... Nxb5
{[%clk 0:01:59.7]} 20. cxb5 {[%clk 0:01:45.9]} 20... c4 {[%clk 0:02:00.5]} 21.
Qb2 {[%clk 0:01:46.6]} 21... Nd3 {[%clk 0:02:01.1]} 22. Qb1 {[%clk 0:01:46.5]}
22... Rb6 {[%clk 0:01:57.5]} 23. a4 {[%clk 0:01:47.8]} 23... d5 {[%clk
0:01:57.5]} 24. exd5 {[%clk 0:01:47.1]} 24... exd5 {[%clk 0:01:59.4]} 25. Rd1
{[%clk 0:01:40.4]} 25... Rd8 {[%clk 0:01:54.8]} 26. Nd4 {[%clk 0:01:35.4]} 26...
Rf6 {[%clk 0:01:36.1]} 27. Rxd3 {[%clk 0:01:20.2]} 27... cxd3 {[%clk 0:01:35.6]}
28. Qxd3 {[%clk 0:01:09.9]} 28... Re8 {[%clk 0:01:30.2]} 29. g3 {[%clk
0:01:02.7]} 29... Re1+ {[%clk 0:01:28.6]} 30. Rxe1 {[%clk 0:01:02.9]} 30...
Qxe1+ {[%clk 0:01:30.5]} 31. Qf1 {[%clk 0:01:04.3]} 31... Qb4 {[%clk 0:01:27.8]}
32. Qa1 {[%clk 0:01:04.9]} 32... h5 {[%clk 0:01:26.9]} 33. Nc6 {[%clk
0:01:00.9]} 33... Qc5 {[%clk 0:01:25.1]} 34. Qd4 {[%clk 0:01:00.9]} 34... Rxc6
{[%clk 0:01:25.6]} 0-1

[Event "*** Titled Tuesday Blitz AM"]
[Site "Chess.com"]
[Date "2020.01.07"]
[Round "1"]
[White "Genghis_K"]
[Black "Talcrifice"]
[Result "1-0"]
[WhiteElo "2885"]
[BlackElo "2485"]
[TimeControl "180+2"]
[EndTime "9:06:28 PST"]
[Termination "Genghis_K won by resignation"]

1. Nf3 {[%clk 0:02:51.7]} 1... d5 {[%clk 0:03:00.3]} 2. d4 {[%clk 0:02:50.8]}
2... Nf6 {[%clk 0:03:00.5]} 3. Bf4 {[%clk 0:02:51.5]} 3... c5 {[%clk 0:02:59.8]}
4. e3 {[%clk 0:02:53]} 4... Nc6 {[%clk 0:03:00.4]} 5. Nbd2 {[%clk 0:02:54.6]}
5... cxd4 {[%clk 0:02:59.1]} 6. exd4 {[%clk 0:02:56.5]} 6... Bf5 {[%clk
0:02:59.1]} 7. Bb5 {[%clk 0:02:55.5]} 7... e6 {[%clk 0:02:55.2]} 8. Ne5 {[%clk
0:02:50.3]} 8... Qb6 {[%clk 0:02:51.6]} 9. c4 {[%clk 0:02:48.7]} 9... a6 {[%clk
0:02:13.8]} 10. Bxc6+ {[%clk 0:01:27.8]} 10... bxc6 {[%clk 0:02:13.9]} 11. O-O
{[%clk 0:01:29.7]} 11... Be7 {[%clk 0:01:40]} 12. Qb3 {[%clk 0:01:19.5]} 12...
Qxd4 {[%clk 0:01:06.5]} 13. g3 {[%clk 0:00:49.2]} 13... O-O {[%clk 0:00:54.5]}
14. Nxc6 {[%clk 0:00:38.8]} 14... Qc5 {[%clk 0:00:24.4]} 15. Qb7 {[%clk
0:00:39.4]} 15... Bd6 {[%clk 0:00:21.8]} 16. b4 {[%clk 0:00:39.8]} 1-0

[Event "*** Titled Tuesday Blitz AM"]
[Site "Chess.com"]
[Date "2020.01.07"]
[Round "1"]
[White "AdrianPetrisor1992"]
[Black "Hydrargyrum_Girl"]
[Result "1-0"]
[WhiteElo "2609"]
[BlackElo "2216"]
[TimeControl "180+2"]
[EndTime "9:06:29 PST"]
[Termination "AdrianPetrisor1992 won by resignation"]

1. Nf3 {[%clk 0:02:58.4]} 1... Nf6 {[%clk 0:03:00.5]} 2. g3 {[%clk 0:02:59.2]}
2... g6 {[%clk 0:03:01.8]} 3. Bg2 {[%clk 0:03:00.8]} 3... Bg7 {[%clk 0:03:03.5]}
4. O-O {[%clk 0:03:02.7]} 4... O-O {[%clk 0:03:04.9]} 5. d4 {[%clk 0:03:04.6]}
5... d6 {[%clk 0:03:01.2]} 6. b3 {[%clk 0:03:05.2]} 6... c5 {[%clk 0:02:41.8]}
7. Bb2 {[%clk 0:03:05.8]} 7... cxd4 {[%clk 0:02:41.3]} 8. Nxd4 {[%clk
0:03:07.7]} 8... a6 {[%clk 0:02:32.6]} 9. c4 {[%clk 0:03:08.2]} 9... Qc7 {[%clk
0:02:32.8]} 10. Nc3 {[%clk 0:03:08.1]} 10... Bd7 {[%clk 0:02:32]} 11. Rc1 {[%clk
0:03:08.1]} 11... Nc6 {[%clk 0:02:31.7]} 12. Nd5 {[%clk 0:03:08.5]} 12... Qd8
{[%clk 0:02:27.4]} 13. e3 {[%clk 0:03:04.2]} 13... Rc8 {[%clk 0:02:14]} 14. Qd2
{[%clk 0:03:00.1]} 14... Nxd4 {[%clk 0:02:07]} 15. Bxd4 {[%clk 0:02:35]} 15...
Nxd5 {[%clk 0:02:00.6]} 16. Bxg7 {[%clk 0:02:31.1]} 16... Kxg7 {[%clk
0:01:59.3]} 17. cxd5 {[%clk 0:02:26.1]} 17... Qb6 {[%clk 0:01:49.4]} 18. h4
{[%clk 0:02:21.3]} 18... h5 {[%clk 0:01:49.8]} 19. e4 {[%clk 0:02:03.9]} 19...
Bb5 {[%clk 0:01:38.5]} 20. Rfe1 {[%clk 0:02:04.2]} 20... Rc5 {[%clk 0:01:05.9]}
21. Rxc5 {[%clk 0:01:49.2]} 21... Qxc5 {[%clk 0:01:07.8]} 22. Rc1 {[%clk
0:01:49.6]} 22... Qb6 {[%clk 0:01:02.2]} 23. Kh2 {[%clk 0:01:49.9]} 23... Bd7
{[%clk 0:00:53.1]} 24. f4 {[%clk 0:01:51]} 24... f6 {[%clk 0:00:48.9]} 25. Re1
{[%clk 0:01:45.7]} 25... Rc8 {[%clk 0:00:42.9]} 26. e5 {[%clk 0:01:46.7]} 26...
dxe5 {[%clk 0:00:43.9]} 27. fxe5 {[%clk 0:01:48.6]} 27... Qc5 {[%clk 0:00:36.2]}
28. exf6+ {[%clk 0:01:45.3]} 28... exf6 {[%clk 0:00:38.1]} 29. d6 {[%clk
0:01:46.7]} 29... Re8 {[%clk 0:00:34.4]} 30. Rxe8 {[%clk 0:01:45.3]} 30... Bxe8
{[%clk 0:00:36.3]} 31. d7 {[%clk 0:01:46.9]} 1-0

[Event "*** Titled Tuesday Blitz AM"]
[Site "Chess.com"]
[Date "2020.01.07"]
[Round "1"]
[White "DrVelja"]
[Black "peteseeger"]
[Result "1-0"]
[WhiteElo "2596"]
[BlackElo "2170"]
[TimeControl "180+2"]
[EndTime "9:06:43 PST"]
[Termination "DrVelja won by resignation"]

1. e4 {[%clk 0:02:58.6]} 1... g6 {[%clk 0:03:00.6]} 2. d4 {[%clk 0:02:59.3]}
2... Bg7 {[%clk 0:03:01.3]} 3. Nc3 {[%clk 0:03:00.8]} 3... c6 {[%clk 0:03:02]}
4. h3 {[%clk 0:02:59.3]} 4... d6 {[%clk 0:03:02.6]} 5. f4 {[%clk 0:02:59.7]}
5... e5 {[%clk 0:03:02.7]} 6. dxe5 {[%clk 0:02:54.8]} 6... Qh4+ {[%clk
0:03:01.4]} 7. Ke2 {[%clk 0:02:56.3]} 7... dxe5 {[%clk 0:02:58]} 8. Nf3 {[%clk
0:02:57.8]} 8... Qe7 {[%clk 0:02:57.7]} 9. fxe5 {[%clk 0:02:53.3]} 9... Nd7
{[%clk 0:02:57.8]} 10. Bg5 {[%clk 0:02:50.1]} 10... f6 {[%clk 0:02:57.8]} 11.
exf6 {[%clk 0:02:34]} 11... Ngxf6 {[%clk 0:02:58.3]} 12. Kf2 {[%clk 0:02:13.3]}
12... O-O {[%clk 0:02:49.4]} 13. Bd3 {[%clk 0:02:14.3]} 13... Ne5 {[%clk
0:02:41.7]} 14. Ke1 {[%clk 0:01:55.3]} 14... Qc5 {[%clk 0:02:03.9]} 15. Qd2
{[%clk 0:01:47.7]} 15... Bd7 {[%clk 0:01:47.4]} 16. Rf1 {[%clk 0:01:37.1]} 16...
Rae8 {[%clk 0:01:47]} 17. Be3 {[%clk 0:01:35.8]} 17... Qb4 {[%clk 0:01:44.9]}
18. Rb1 {[%clk 0:01:26.8]} 18... Nc4 {[%clk 0:01:33.2]} 19. Bxc4+ {[%clk
0:01:27.5]} 19... Qxc4 {[%clk 0:01:34.1]} 20. Qd3 {[%clk 0:01:29.4]} 20... Qb4
{[%clk 0:01:26.6]} 21. e5 {[%clk 0:01:17.8]} 21... Nd5 {[%clk 0:01:16.3]} 22. a3
{[%clk 0:01:18.4]} 22... Qa5 {[%clk 0:01:12.2]} 23. b4 {[%clk 0:01:16.1]} 23...
Qxa3 {[%clk 0:01:07.5]} 24. Nxd5 {[%clk 0:01:16.9]} 24... Qxd3 {[%clk
0:01:07.3]} 25. cxd3 {[%clk 0:01:18.5]} 25... cxd5 {[%clk 0:01:07.4]} 26. Bd4
{[%clk 0:01:10.3]} 26... Rc8 {[%clk 0:00:56.8]} 27. Kd2 {[%clk 0:01:08.5]} 27...
a6 {[%clk 0:00:57.4]} 28. Rfc1 {[%clk 0:01:06.6]} 28... h6 {[%clk 0:00:47.6]}
29. Rxc8 {[%clk 0:01:05.1]} 29... Rxc8 {[%clk 0:00:47.5]} 30. Re1 {[%clk
0:01:07]} 30... Kf7 {[%clk 0:00:46.4]} 31. e6+ {[%clk 0:01:06.3]} 31... Bxe6
{[%clk 0:00:46.7]} 32. Bxg7 {[%clk 0:01:07.9]} 1-0

[Event "*** Titled Tuesday Blitz AM"]
[Site "Chess.com"]
[Date "2020.01.07"]
[Round "1"]
[White "Snegokhod"]
[Black "Saloni1299"]
[Result "1-0"]
[WhiteElo "2564"]
[BlackElo "2061"]
[TimeControl "180+2"]
[EndTime "9:06:44 PST"]
[Termination "Snegokhod won on time"]

1. e4 {[%clk 0:02:57.8]} 1... e6 {[%clk 0:02:57.2]} 2. d3 {[%clk 0:02:56.7]}
2... d5 {[%clk 0:02:58]} 3. Nd2 {[%clk 0:02:56.3]} 3... c5 {[%clk 0:02:57.6]} 4.
Ngf3 {[%clk 0:02:56.5]} 4... g6 {[%clk 0:02:58.1]} 5. Be2 {[%clk 0:02:56.8]}
5... Bg7 {[%clk 0:02:58.7]} 6. O-O {[%clk 0:02:57.9]} 6... Nc6 {[%clk
0:02:58.9]} 7. exd5 {[%clk 0:02:55.2]} 7... exd5 {[%clk 0:02:58]} 8. Nb3 {[%clk
0:02:56.3]} 8... b6 {[%clk 0:02:55.8]} 9. d4 {[%clk 0:02:55.1]} 9... c4 {[%clk
0:02:53.6]} 10. Nbd2 {[%clk 0:02:54.9]} 10... Nge7 {[%clk 0:02:42.9]} 11. c3
{[%clk 0:02:52.2]} 11... O-O {[%clk 0:02:41.2]} 12. Re1 {[%clk 0:02:53.1]} 12...
Rb8 {[%clk 0:02:29.8]} 13. Nf1 {[%clk 0:02:50.1]} 13... Nf5 {[%clk 0:02:27.5]}
14. Ne3 {[%clk 0:02:48.3]} 14... Nxe3 {[%clk 0:02:24.3]} 15. Bxe3 {[%clk
0:02:48.3]} 15... Qd6 {[%clk 0:02:21.3]} 16. Qd2 {[%clk 0:02:47.4]} 16... Rb7
{[%clk 0:02:10]} 17. g3 {[%clk 0:02:43.1]} 17... Bf5 {[%clk 0:02:08.9]} 18. Bf1
{[%clk 0:02:41.1]} 18... Ne7 {[%clk 0:01:42.6]} 19. Bg2 {[%clk 0:02:31.6]} 19...
Be4 {[%clk 0:01:01.8]} 20. Bf4 {[%clk 0:02:29.7]} 20... Qd7 {[%clk 0:00:54.8]}
21. Rxe4 {[%clk 0:02:14.7]} 21... dxe4 {[%clk 0:00:45]} 22. Ne5 {[%clk
0:02:16.6]} 22... Bxe5 {[%clk 0:00:36]} 23. Bxe5 {[%clk 0:02:18.5]} 23... Nc6
{[%clk 0:00:26.5]} 24. Bxe4 {[%clk 0:02:14.6]} 24... Nxe5 {[%clk 0:00:24.5]} 25.
Bxb7 {[%clk 0:02:15.2]} 25... Qxb7 {[%clk 0:00:11.5]} 26. dxe5 {[%clk
0:02:15.9]} 26... Re8 {[%clk 0:00:12.3]} 27. Re1 {[%clk 0:02:15.9]} 27... Qf3
{[%clk 0:00:12.7]} 28. Qd7 {[%clk 0:02:14.3]} 28... Kf8 {[%clk 0:00:07.4]} 29.
Re3 {[%clk 0:02:08.9]} 29... Qf5 {[%clk 0:00:04.2]} 30. Qd6+ {[%clk 0:02:09.8]}
30... Kg7 {[%clk 0:00:02.2]} 31. Qd5 {[%clk 0:02:10]} 31... Re6 {[%clk
0:00:02.2]} 32. Kg2 {[%clk 0:02:09.1]} 32... Qc2 {[%clk 0:00:02.3]} 33. Qd7
{[%clk 0:02:05.1]} 33... Qxb2 {[%clk 0:00:03.1]} 34. Rf3 {[%clk 0:02:05.5]} 1-0